fUSD/lending_fUSD_20250612
["ID","MTS","AMOUNT","RATE_DAILY","PERIOD"]
[365533334,1749769835919,-500.0,0.00016999,2]
[365533335,1749769835928,-500.0,0.00016999,2]
[365533336,1749769835938,-500.0,0.00016999,2]
[365533337,1749769835948,-500.0,0.00016999,2]
[365533338,1749769835957,-1647.05,0.00016999,2]
[365533339,1749769835967,-500.0,0.00016999,2]
[365533340,1749769835977,-500.0,0.00016999,2]
[365533341,1749769835986,-500.0,0.00016999,2]
[365533342,1749769835996,-500.0,0.00016999,2]
[365533343,1749769836006,-500.0,0.00016999,2]
[365533344,1749769836015,-500.0,0.00016999,2]
[365533345,1749769836024,-503.68444741,0.00016999,2]
[365533346,1749769836034,-592.99,0.00016999,2]
[365533347,1749769836043,-428.35449516,0.00016999,2]
[365533348,1749769836053,-483.81312454,0.00016999,2]
[365533349,1749769836062,-7230.73,0.00016999,2]
[365533350,1749769836071,-490.0,0.00016999,2]
[365533351,1749769836080,-490.0,0.00016999,2]
[365533352,1749769836090,-490.0,0.00016999,2]
[365533353,1749769836099,-490.0,0.00016999,2]
[365533354,1749769836108,-480.0,0.00016999,2]
[365533355,1749769836118,-490.0,0.00016999,2]
[365533356,1749769836127,-381.51950188,0.00016999,2]
[365533357,1749769836138,-490.0,0.00016999,2]
[365533358,1749769836147,-490.0,0.00016999,2]
[365533359,1749769836156,-3099.52,0.00016999,2]
[365533360,1749769836166,-490.0,0.00016999,2]
[365533361,1749769836176,-490.0,0.00016999,2]
[365533362,1749769836186,-490.0,0.00016999,2]
[365533363,1749769836195,-490.0,0.00016999,2]
[365533364,1749769836206,-885.47,0.00016999,2]
[365533365,1749769836215,-774.67,0.00016999,2]
[365533366,1749769836224,-490.0,0.00016999,2]
[365533367,1749769836234,-490.0,0.00016999,2]
[365533368,1749769836246,-490.0,0.00016999,2]
[365533369,1749769836255,-429.85318323,0.00016999,2]
[365533370,1749769836265,-490.0,0.00016999,2]
[365533371,1749769836274,-2224.39,0.00016999,2]
[365533372,1749769836284,-490.0,0.00016999,2]
[365533373,1749769836293,-490.0,0.00016999,2]
[365533374,1749769836303,-3249.87,0.00016999,2]
[365533375,1749769836313,-490.0,0.00016999,2]
[365533376,1749769836323,-490.0,0.00016999,2]
[365533377,1749769836333,-490.0,0.00016999,2]
[365533378,1749769836343,-490.0,0.00016999,2]
[365533379,1749769836352,-729.89,0.00016999,2]
[365533380,1749769836362,-490.0,0.00016999,2]
[365533381,1749769836373,-490.0,0.00016999,2]
[365533382,1749769836383,-517.78,0.00016999,2]
[365533383,1749769836393,-480.42310518,0.00016999,2]
[365533384,1749769836403,-490.0,0.00016999,2]
[365533385,1749769836413,-490.0,0.00016999,2]
[365533386,1749769836423,-490.0,0.00016999,2]
[365533387,1749769836433,-500.0,0.00016999,2]
[365533388,1749769836442,-490.0,0.00016999,2]
[365533389,1749769836452,-490.0,0.00016999,2]
[365533390,1749769836461,-480.0,0.00016999,2]
[365533391,1749769836471,-4150.72,0.00016999,2]
[365533392,1749769836481,-490.0,0.00016999,2]
[365533393,1749769836491,-490.0,0.00016999,2]
[365533394,1749769836501,-490.0,0.00016999,2]
[365533395,1749769836510,-490.0,0.00016999,2]
[365533396,1749769836521,-490.0,0.00016999,2]
[365533397,1749769836531,-482.07864366,0.00016999,2]
[365533398,1749769836545,-626.08155765,0.00016999,2]
[365533399,1749769836566,-570.81,0.00016999,2]
[365533400,1749769836576,-1769.05,0.00016999,2]
[365533401,1749769836586,-490.0,0.00016999,2]
[365533402,1749769836597,-490.0,0.00016999,2]
[365533403,1749769836606,-532.81,0.00016999,2]
[365533404,1749769836617,-480.0,0.00016999,2]
[365533405,1749769836628,-2400.78,0.00016999,2]
[365533406,1749769836639,-1000.0,0.00016999,2]
[365533407,1749769836649,-490.0,0.00016999,2]
[365533408,1749769836659,-490.0,0.00016999,2]
[365533409,1749769836668,-490.0,0.00016999,2]
[365533410,1749769836678,-490.0,0.00016999,2]
[365533411,1749769836688,-490.0,0.00016999,2]
[365533412,1749769836698,-537.91852582,0.00016999,2]
[365533413,1749769836708,-500.0,0.00016999,2]
[365533414,1749769836718,-500.0,0.00016999,2]
[365533415,1749769836728,-563.46977033,0.00016999,2]
[365533416,1749769836738,-196.55247261,0.00016999,2]
[365533417,1749769836751,-490.0,0.00016999,2]
[365533418,1749769836761,-490.0,0.00016999,2]
[365533419,1749769836771,-1122.54,0.00016999,2]
[365533420,1749769836781,-490.0,0.00016999,2]
[365533421,1749769836791,-490.0,0.00016999,2]
[365533422,1749769836801,-1509.55,0.00016999,2]
[365533423,1749769836811,-5045.09,0.00016999,2]
[365533424,1749769836821,-490.0,0.00016999,2]
[365533425,1749769836831,-490.0,0.00016999,2]
[365533426,1749769836842,-490.0,0.00016999,2]
[365533427,1749769836853,-2683.72,0.00016999,2]
[365533428,1749769836863,-490.0,0.00016999,2]
[365533429,1749769836874,-500.49260789,0.00016999,2]
[365533430,1749769836884,-490.0,0.00016999,2]
[365533431,1749769836894,-490.0,0.00016999,2]
[365533432,1749769836904,-890.97,0.00016999,2]
[365533433,1749769836914,-490.0,0.00016999,2]
[365533434,1749769836923,-490.0,0.00016999,2]
[365533435,1749769836933,-490.0,0.00016999,2]
[365533436,1749769836943,-1636.19,0.00016999,2]
[365533437,1749769836952,-490.0,0.00016999,2]
[365533438,1749769836962,-490.0,0.00016999,2]
[365533439,1749769836972,-490.0,0.00016999,2]
[365533440,1749769836981,-490.0,0.00016999,2]
[365533441,1749769836995,-625.73,0.00016999,2]
[365533442,1749769837005,-442.24867029,0.00016999,2]
[365533443,1749769837072,-500.0,0.00016995,2]
[365533444,1749769837082,-490.0,0.00016995,2]
[365533445,1749769837091,-500.0,0.00016995,2]
[365533446,1749769837101,-6233.61220232,0.00016999,2]
[365533447,1749769837113,-1551.24912739,0.00016999,2]
[365533448,1749769837122,-365.48261652,0.00016999,2]
[365533449,1749769837132,-490.0,0.00016999,2]
[365533450,1749769837141,-490.0,0.00016999,2]
[365533451,1749769837150,-2126.27361163,0.00016999,2]
[365533452,1749769837162,-36.22638837,0.00016999,2]
[365533453,1749769837171,-774.2,0.00016999,2]
[365533454,1749769837180,-490.0,0.00016999,2]
[365533455,1749769837189,-463.7113455,0.00016999,2]
[365533456,1749769837198,-490.0,0.00016999,2]
[365533457,1749769837208,-490.0,0.00016999,2]
[365533458,1749769837216,-300.0,0.00016999,2]
[365533459,1749769837226,-894.37,0.00016999,2]
[365533460,1749769837235,-490.0,0.00016999,2]
[365533461,1749769837249,-490.0,0.00016999,2]
[365533462,1749769837258,-480.0,0.00016999,2]
[365533463,1749769837268,-490.0,0.00016999,2]
[365533464,1749769837277,-490.0,0.00016999,2]
[365533465,1749769837287,-490.0,0.00016999,2]
[365533466,1749769837297,-500.0,0.00016999,2]
[365533467,1749769837307,-490.0,0.00016999,2]
[365533468,1749769837316,-500.0,0.00016999,2]
[365533469,1749769837325,-500.0,0.00016999,2]
[365533470,1749769837335,-500.0,0.00016999,2]
[365533471,1749769837345,-500.0,0.00016999,2]
[365533472,1749769837354,-490.0,0.00016999,2]
[365533473,1749769837364,-6632.99,0.00016999,2]
[365533474,1749769837374,-500.0,0.00016999,2]
[365533475,1749769837383,-500.0,0.00016999,2]
[365533476,1749769837394,-1244.53,0.00016999,2]
[365533477,1749769837404,-500.0,0.00016999,2]
[365533478,1749769837414,-490.0,0.00016999,2]
[365533479,1749769837424,-500.0,0.00016999,2]
[365533480,1749769837434,-490.0,0.00016999,2]
[365533481,1749769837443,-490.0,0.00016999,2]
[365533482,1749769837454,-500.0,0.00016999,2]
[365533483,1749769837463,-524.75706744,0.00016999,2]
[365533484,1749769837473,-490.0,0.00016999,2]
[365533485,1749769837484,-1108.78,0.00016999,2]
[365533486,1749769837496,-490.0,0.00016999,2]
[365533487,1749769837507,-490.0,0.00016999,2]
[365533488,1749769837516,-490.0,0.00016999,2]
[365533489,1749769837526,-3738.62,0.00016999,2]
[365533490,1749769837538,-681.18,0.00016999,2]
[365533491,1749769837550,-1355.17,0.00016999,2]
[365533492,1749769837560,-490.0,0.00016999,2]
[365533493,1749769837570,-490.0,0.00016999,2]
[365533494,1749769837580,-490.0,0.00016999,2]
[365533495,1749769837591,-490.0,0.00016999,2]
[365533496,1749769837601,-686.08,0.00016999,2]
[365533497,1749769837611,-1451.02210202,0.00016999,2]
[365533498,1749769837626,-450.0,0.00016999,2]
[365533499,1749769837974,-347.84789798,0.00016999,2]
[365533501,1749769837984,-490.0,0.00016999,2]
[365533502,1749769837996,-490.0,0.00016999,2]
[365533504,1749769838006,-490.0,0.00016999,2]
[365533506,1749769838015,-490.0,0.00016999,2]
[365533507,1749769838026,-630.48731362,0.00016999,2]
[365533509,1749769838036,-1857.56,0.00016999,2]
[365533510,1749769838045,-490.0,0.00016999,2]
[365533511,1749769838054,-490.0,0.00016999,2]
[365533512,1749769838064,-446.41968513,0.00016999,2]
[365533513,1749769838073,-490.0,0.00016999,2]
[365533514,1749769838082,-1056.82,0.00016999,2]
[365533515,1749769838092,-490.0,0.00016999,2]
[365533516,1749769838102,-577.34527416,0.00016999,2]
[365533671,1749769842132,-391.998046,0.00016799,2]
[365533672,1749769842141,-4087.0,0.00016907,2]
[365533673,1749769842150,-500.0,0.00016995,2]
[365533674,1749769842160,-500.0,0.00016995,2]
[365533675,1749769842169,-500.0,0.00016995,2]
[365533676,1749769842179,-500.0,0.00016995,2]
[365533677,1749769842188,-500.0,0.00016995,2]
[365533678,1749769842197,-500.0,0.00016995,2]
[365533679,1749769842206,-500.0,0.00016995,2]
[365533680,1749769842215,-500.0,0.00016995,2]
[365533681,1749769842225,-246.83951264,0.00016995,2]
[365533682,1749769842234,-480.0,0.00016995,2]
[365533683,1749769842244,-2152.74,0.00016995,2]
[365533684,1749769842253,-1757.93472584,0.00016999,2]
[365533685,1749769842263,-490.0,0.00016999,2]
[365533686,1749769842272,-4817.72,0.00016999,2]
[365533687,1749769842281,-1359.89,0.00016999,2]
[365533688,1749769842291,-2497.37,0.00016999,2]
[365533689,1749769842300,-490.0,0.00016999,2]
[365533690,1749769842310,-490.0,0.00016999,2]
[365533691,1749769842319,-490.0,0.00016999,2]
[365533692,1749769842328,-423.26583231,0.00016999,2]
[365533693,1749769842337,-490.0,0.00016999,2]
[365533694,1749769842347,-2994.61,0.00016999,2]
[365533695,1749769842356,-1005.13,0.00016999,2]
[365533696,1749769842366,-931.59,0.00016999,2]
[365533697,1749769842375,-490.0,0.00016999,2]
[365533698,1749769842385,-490.0,0.00016999,2]
[365533699,1749769842394,-490.0,0.00016999,2]
[365533700,1749769842403,-490.0,0.00016999,2]
[365533701,1749769842413,-420.76435055,0.00016999,2]
[365533702,1749769842422,-300.0,0.00016999,2]
[365533703,1749769842432,-490.0,0.00016999,2]
[365533704,1749769842441,-490.0,0.00016999,2]
[365533705,1749769842451,-32889.13,0.00016999,2]
[365533706,1749769842460,-490.0,0.00016999,2]
[365533707,1749769842470,-490.0,0.00016999,2]
[365533708,1749769842480,-490.0,0.00016999,2]
[365533709,1749769842489,-798.53,0.00016999,2]
[365533710,1749769842500,-881.83,0.00016999,2]
[365533711,1749769842510,-490.0,0.00016999,2]
[365533712,1749769842522,-490.0,0.00016999,2]
[365533713,1749769842532,-490.0,0.00016999,2]
[365533714,1749769842544,-490.0,0.00016999,2]
[365533715,1749769842554,-490.0,0.00016999,2]
[365533716,1749769842563,-490.0,0.00016999,2]
[365533717,1749769842573,-490.0,0.00016999,2]
[365533718,1749769842583,-490.0,0.00016999,2]
[365533719,1749769842593,-12869.47,0.00016999,2]
[365533720,1749769842604,-490.0,0.00016999,2]
[365533721,1749769842615,-632.63,0.00016999,2]
[365533722,1749769842624,-490.0,0.00016999,2]
[365533723,1749769842634,-490.0,0.00016999,2]
[365533724,1749769842644,-501.1704291,0.00016999,2]
[365533725,1749769842654,-1606.95,0.00016999,2]
[365533726,1749769842663,-505.4838324,0.00016999,2]
[365533727,1749769842673,-490.0,0.00016999,2]
[365533728,1749769842682,-5241.32,0.00016999,2]
[365533729,1749769842692,-1369.46,0.00016999,2]
[365533730,1749769842701,-490.0,0.00016999,2]
[365533731,1749769842711,-703.9,0.00016999,2]
[365533732,1749769842720,-490.0,0.00016999,2]
[365533733,1749769842729,-490.0,0.00016999,2]
[365533734,1749769842739,-7804.82,0.00016999,2]
[365533735,1749769842749,-490.0,0.00016999,2]
[365533736,1749769842759,-490.0,0.00016999,2]
[365533737,1749769842768,-484.20873064,0.00016999,2]
[365533738,1749769842778,-960.27,0.00016999,2]
[365533739,1749769842787,-3717.48,0.00016999,2]
[365533740,1749769842796,-561.22,0.00016999,2]
[365533741,1749769842806,-490.0,0.00016999,2]
[365533742,1749769842814,-490.0,0.00016999,2]
[365533743,1749769842823,-3511.35,0.00016999,2]
[365533744,1749769842833,-490.0,0.00016999,2]
[365533745,1749769842842,-490.0,0.00016999,2]
[365533746,1749769842851,-166.68081174,0.00016999,2]
[365533747,1749769842860,-781.1,0.00016999,2]
[365533748,1749769842869,-2083.57,0.00016999,2]
[365533749,1749769842878,-490.0,0.00016999,2]
[365533750,1749769842887,-490.0,0.00016999,2]
[365533751,1749769842896,-500.0,0.00016999,2]
[365533752,1749769842905,-503.20826249,0.00016999,2]
[365533753,1749769842914,-490.0,0.00016999,2]
[365533754,1749769842924,-333.54563638,0.00016999,2]
[365533755,1749769842933,-490.0,0.00016999,2]
[365533756,1749769842943,-490.0,0.00016999,2]
[365533757,1749769842952,-2339.29,0.00016999,2]
[365533758,1749769842961,-667.67,0.00016999,2]
[365533759,1749769842970,-490.0,0.00016999,2]
[365533760,1749769842979,-1611.69,0.00016999,2]
[365533761,1749769842989,-3238.29,0.00016999,2]
[365533762,1749769842999,-490.0,0.00016999,2]
[365533763,1749769843008,-740.36,0.00016999,2]
[365533764,1749769843018,-250.94281495,0.00016999,2]
[365533765,1749769843028,-490.0,0.00016999,2]
[365533766,1749769843037,-490.0,0.00016999,2]
[365533767,1749769843047,-490.0,0.00016999,2]
[365533768,1749769843056,-490.0,0.00016999,2]
[365533769,1749769843066,-1825.03,0.00016999,2]
[365533770,1749769843075,-3527.32,0.00016999,2]
[365533771,1749769843085,-490.0,0.00016999,2]
[365533772,1749769843094,-490.0,0.00016999,2]
[365533773,1749769843103,-500.0,0.00016999,2]
[365533774,1749769843111,-500.0,0.00016999,2]
[365533775,1749769843120,-500.0,0.00016999,2]
[365533776,1749769843129,-490.0,0.00016999,2]
[365533777,1749769843139,-500.0,0.00016999,2]
[365533778,1749769843150,-500.0,0.00016999,2]
[365533779,1749769843159,-500.0,0.00016999,2]
[365533780,1749769843168,-500.0,0.00016999,2]
[365533781,1749769843177,-490.0,0.00016999,2]
[365533782,1749769843186,-150.0,0.00016999,2]
[365533783,1749769843195,-3584.14,0.00016999,2]
[365533784,1749769843204,-500.0,0.00016999,2]
[365533785,1749769843212,-490.0,0.00016999,2]
[365533786,1749769843222,-490.0,0.00016999,2]
[365533787,1749769843231,-500.0,0.00016999,2]
[365533788,1749769843240,-500.0,0.00016999,2]
[365533789,1749769843251,-500.0,0.00016999,2]
[365533790,1749769843260,-150.0,0.00016999,2]
[365533791,1749769843269,-500.0,0.00016999,2]
[365533793,1749769843278,-490.0,0.00016999,2]
[365533794,1749769843287,-490.0,0.00016999,2]
[365533795,1749769843296,-500.0,0.00016999,2]
[365533796,1749769843306,-500.0,0.00016999,2]
[365533797,1749769843315,-500.0,0.00016999,2]
[365533798,1749769843324,-500.0,0.00016999,2]
[365533799,1749769843334,-500.0,0.00016999,2]
[365533800,1749769843343,-490.0,0.00016999,2]
[365533801,1749769843353,-150.0,0.00016999,2]
[365533802,1749769843362,-1442.08,0.00016999,2]
[365533803,1749769843372,-490.0,0.00016999,2]
[365533804,1749769843381,-9120.24,0.00016999,2]
[365533805,1749769843391,-500.0,0.00016999,2]
[365533806,1749769843401,-150.0,0.00016999,2]
[365533807,1749769843411,-2007.82,0.00016999,2]
[365533808,1749769843420,-457.32297899,0.00016999,2]
[365533809,1749769843430,-591.53,0.00016999,2]
[365533810,1749769843439,-467.21223317,0.00016999,2]
[365533811,1749769843449,-500.0,0.00016999,2]
[365533812,1749769843458,-490.0,0.00016999,2]
[365533813,1749769843468,-13192.62,0.00016999,2]
[365533814,1749769843477,-490.0,0.00016999,2]
[365533815,1749769843486,-150.0,0.00016999,2]
[365533816,1749769843497,-490.0,0.00016999,2]
[365533817,1749769843506,-5862.49,0.00016999,2]
[365533818,1749769843515,-8902.68,0.00016999,2]
[365533819,1749769843525,-500.0,0.00016999,2]
[365533820,1749769843535,-490.0,0.00016999,2]
[365533821,1749769843548,-490.0,0.00016999,2]
[365533822,1749769843558,-2975.14,0.00016999,2]
[365533823,1749769843567,-490.0,0.00016999,2]
[365533824,1749769843577,-481.17911422,0.00016999,2]
[365533825,1749769843588,-993.9,0.00016999,2]
[365533826,1749769843598,-597.11,0.00016999,2]
[365533827,1749769843608,-490.0,0.00016999,2]
[365533828,1749769843620,-7794.38,0.00016999,2]
[365533829,1749769843630,-499.12,0.00016999,2]
[365533830,1749769843639,-490.0,0.00016999,2]
[365533832,1749769843649,-738.86,0.00016999,2]
[365533833,1749769843658,-2515.65,0.00016999,2]
[365533834,1749769843669,-716.89,0.00016999,2]
[365533836,1749769843678,-490.0,0.00016999,2]
[365533837,1749769843688,-9248.46,0.00016999,2]
[365533838,1749769843698,-490.0,0.00016999,2]
[365533839,1749769843708,-467.12641225,0.00016999,2]
[365533840,1749769843717,-490.0,0.00016999,2]
[365533841,1749769843727,-597.01,0.00016999,2]
[365533842,1749769843737,-500.0,0.00016999,2]
[365533843,1749769843747,-934.94,0.00016999,2]
[365533844,1749769843757,-426.71356169,0.00016999,2]
[365533845,1749769843767,-490.0,0.00016999,2]
[365533846,1749769843777,-588.45,0.00016999,2]
[365533847,1749769843787,-2943.86,0.00016999,2]
[365533848,1749769843797,-353.66625811,0.00016999,2]
[365533849,1749769843815,-136.33374189,0.00016999,2]
[365533850,1749769843824,-1424.31,0.00016999,2]
[365533851,1749769843835,-211.82909633,0.00016999,2]
[365533852,1749769843844,-490.0,0.00016999,2]
[365533853,1749769843854,-630.5,0.00016999,2]
[365533854,1749769843864,-2739.84,0.00016999,2]
[365533855,1749769843873,-490.0,0.00016999,2]
[365533856,1749769843883,-490.0,0.00016999,2]
[365533857,1749769843892,-742.19,0.00016999,2]
[365533858,1749769843902,-5798.23,0.00016999,2]
[365533859,1749769843911,-481.26905239,0.00016999,2]
[365533860,1749769843921,-801.14,0.00016999,2]
[365533861,1749769843931,-559.87,0.00016999,2]
[365533862,1749769843940,-490.0,0.00016999,2]
[365533863,1749769843950,-490.0,0.00016999,2]
[365533864,1749769843960,-626.6,0.00016999,2]
[365533865,1749769843970,-636.39,0.00016999,2]
[365533866,1749769843979,-860.21,0.00016999,2]
[365533867,1749769843989,-490.0,0.00016999,2]
[365533868,1749769843999,-4169.55,0.00016999,2]
[365533869,1749769844009,-2866.84,0.00016999,2]
[365533870,1749769844020,-200.98,0.00016999,2]
[365533871,1749769844029,-490.0,0.00016999,2]
[365533872,1749769844039,-490.0,0.00016999,2]
[365533873,1749769844049,-594.12,0.00016999,2]
[365533874,1749769844060,-490.0,0.00016999,2]
[365533875,1749769844070,-2774.12,0.00016999,2]
[365533876,1749769844081,-490.0,0.00016999,2]
[365533877,1749769844092,-3422.17,0.00016999,2]
[365533878,1749769844105,-3422.17,0.00016999,2]
[365533879,1749769844116,-423.25345189,0.00016999,2]
[365533880,1749769844126,-445.2674575,0.00016999,2]
[365533881,1749769844159,-679.93379039,0.00016999,2]
[365533882,1749769845105,-155.0,0.00016907,2]
[365533883,1749769845116,-396.15622138,0.00016999,2]
[365533884,1749769845128,-1900.81253073,0.00016999,2]
[365533885,1749769845138,-3422.17,0.00016999,2]
[365533886,1749769845148,-3422.17,0.00016999,2]
[365533887,1749769845158,-490.0,0.00016999,2]
[365533888,1749769845168,-490.0,0.00016999,2]
[365533889,1749769845178,-1671.42,0.00016999,2]
[365533890,1749769845188,-3422.17,0.00016999,2]
[365533891,1749769845198,-490.0,0.00016999,2]
[365533892,1749769845270,-3422.17,0.00016999,2]
[365533893,1749769845315,-3422.17,0.00016999,2]
[365533894,1749769845325,-3474.23,0.00016999,2]
[365533895,1749769845334,-14651.02,0.00016999,2]
[365533896,1749769845343,-3422.17,0.00016999,2]
[365533897,1749769845352,-3422.17,0.00016999,2]
[365533898,1749769845361,-553.6638289,0.00016999,2]
[365533899,1749769845371,-3422.17,0.00016999,2]
[365533900,1749769845380,-1291.44,0.00016999,2]
[365533901,1749769845390,-3422.17,0.00016999,2]
[365533902,1749769845399,-3422.17,0.00016999,2]
[365533903,1749769845409,-3422.17,0.00016999,2]
[365533904,1749769845418,-3422.17,0.00016999,2]
[365533905,1749769845427,-3422.17,0.00016999,2]
[365533906,1749769845436,-3422.17,0.00016999,2]
[365533907,1749769845446,-490.0,0.00016999,2]
[365533908,1749769845455,-490.0,0.00016999,2]
[365533909,1749769845465,-490.0,0.00016999,2]
[365533910,1749769845475,-490.0,0.00016999,2]
[365533911,1749769845484,-490.0,0.00016999,2]
[365533912,1749769845494,-490.0,0.00016999,2]
[365533913,1749769845504,-849.79,0.00016999,2]
[365533914,1749769845514,-6697.16,0.00016999,2]
[365533915,1749769845524,-490.0,0.00016999,2]
[365533916,1749769845534,-4146.76,0.00016999,2]
[365533917,1749769845547,-490.0,0.00016999,2]
[365533918,1749769845557,-490.0,0.00016999,2]
[365533919,1749769845566,-490.0,0.00016999,2]
[365533920,1749769845576,-9325.41,0.00016999,2]
[365533921,1749769845586,-490.0,0.00016999,2]
[365533922,1749769845596,-490.0,0.00016999,2]
[365533923,1749769845606,-490.0,0.00016999,2]
[365533924,1749769845616,-490.0,0.00016999,2]
[365533925,1749769845625,-490.59441041,0.00016999,2]
[365533926,1749769845635,-8093.99,0.00016999,2]
[365533927,1749769845645,-429.72998231,0.00016999,2]
[365533928,1749769845654,-2559.67,0.00016999,2]
[365533929,1749769845664,-633.14,0.00016999,2]
[365533930,1749769845674,-490.0,0.00016999,2]
[365533931,1749769845684,-490.0,0.00016999,2]
[365533932,1749769845694,-490.0,0.00016999,2]
[365533933,1749769845704,-490.0,0.00016999,2]
[365533934,1749769845714,-2284.24,0.00016999,2]
[365533935,1749769845724,-482.9758265,0.00016999,2]
[365533936,1749769845734,-1530.62,0.00016999,2]
[365533937,1749769845744,-490.0,0.00016999,2]
[365533938,1749769845754,-491.87247156,0.00016999,2]
[365533939,1749769845763,-490.0,0.00016999,2]
[365533940,1749769845774,-490.0,0.00016999,2]
[365533941,1749769845783,-1571.94,0.00016999,2]
[365533942,1749769845793,-1571.94,0.00016999,2]
[365533943,1749769845802,-1284.28,0.00016999,2]
[365533944,1749769845812,-1571.94,0.00016999,2]
[365533945,1749769845822,-490.0,0.00016999,2]
[365533946,1749769845833,-1571.94,0.00016999,2]
[365533947,1749769845842,-1571.94,0.00016999,2]
[365533948,1749769845852,-1571.94,0.00016999,2]
[365533949,1749769845862,-1571.94,0.00016999,2]
[365533950,1749769845873,-1571.94,0.00016999,2]
[365533951,1749769845882,-1571.94,0.00016999,2]
[365533952,1749769845893,-1571.94,0.00016999,2]
[365533953,1749769845902,-1571.94,0.00016999,2]
[365533954,1749769845912,-1571.94,0.00016999,2]
[365533955,1749769845923,-1571.94,0.00016999,2]
[365533956,1749769845934,-1571.94,0.00016999,2]
[365533957,1749769845944,-1571.94,0.00016999,2]
[365533958,1749769845956,-490.0,0.00016999,2]
[365533959,1749769845965,-490.0,0.00016999,2]
[365533960,1749769845974,-1571.94,0.00016999,2]
[365533961,1749769845983,-1571.94,0.00016999,2]
[365533962,1749769845994,-1725.53,0.00016999,2]
[365533963,1749769846004,-490.0,0.00016999,2]
[365533964,1749769846013,-1889.81,0.00016999,2]
[365533965,1749769846024,-490.0,0.00016999,2]
[365533966,1749769846034,-490.0,0.00016999,2]
[365533967,1749769846043,-490.0,0.00016999,2]
[365533968,1749769846054,-1698.76,0.00016999,2]
[365533969,1749769846367,-575.44235527,0.00016999,2]
[365533970,1749769846438,-490.0,0.00016999,2]
[365533971,1749769846447,-6139.68,0.00016999,2]
[365533972,1749769846457,-490.0,0.00016999,2]
[365533973,1749769846467,-582.29131219,0.00016999,2]
[365533974,1749769846476,-490.0,0.00016999,2]
[365533975,1749769846486,-490.0,0.00016999,2]
[365533976,1749769846495,-490.0,0.00016999,2]
[365533977,1749769846505,-490.0,0.00016999,2]
[365533978,1749769846514,-1387.84,0.00016999,2]
[365533979,1749769846524,-490.0,0.00016999,2]
[365533980,1749769846533,-6185.72,0.00016999,2]
[365533981,1749769846544,-431.65514514,0.00016999,2]
[365533982,1749769846556,-490.0,0.00016999,2]
[365533983,1749769846565,-490.0,0.00016999,2]
[365533984,1749769846574,-490.0,0.00016999,2]
[365533985,1749769846584,-490.0,0.00016999,2]
[365533986,1749769846595,-660.7,0.00016999,2]
[365533987,1749769846604,-490.0,0.00016999,2]
[365533988,1749769846615,-490.0,0.00016999,2]
[365533989,1749769846626,-490.0,0.00016999,2]
[365533990,1749769846635,-2761.02,0.00016999,2]
[365533991,1749769846645,-490.0,0.00016999,2]
[365533992,1749769846656,-490.0,0.00016999,2]
[365533993,1749769846665,-490.0,0.00016999,2]
[365533994,1749769846675,-490.0,0.00016999,2]